fUSD/lending_fUSD_20241027
["ID","MTS","AMOUNT","RATE_DAILY","PERIOD"]
[340892097,1730031037827,-500.0,0.00014773,2]
[340892098,1730031037836,-300.0,0.00014799,2]
[340892099,1730031037845,-4213.58651552,0.000148,2]
[340892100,1730031037856,-26070.06344274,0.000148,2]
[340892101,1730031037867,-975.45974624,0.000148,2]
[340892102,1730031038250,-783.5840292,0.000148,2]
[340892103,1730031038262,-1301.15361802,0.000148,2]
[340892104,1730031038274,-749.86877271,0.000148,2]
[340892105,1730031038284,-6329.97878758,0.000148,2]
[340892106,1730031038296,-302.5407008,0.000148,2]
[340892129,1730031039664,-23400.0,0.000148,2]
[340892138,1730031040000,-507.5362552,0.000148,2]
[340892148,1730031043000,-725.99,0.000148,2]
[340892149,1730031045898,-544.52994525,0.000148,2]
[340892150,1730031062666,986.48,0.00013212,2]
[340892151,1730031111206,-300.0,0.00014799,2]
[340892152,1730031111230,-37908.0,0.000148,2]
[340892153,1730031156107,-465.7,0.00014725,2]
[340892154,1730031156128,-150.0,0.00014799,2]
[340892155,1730031156149,-401.29470226,0.000148,2]
[340892156,1730031156172,-502.2264,0.000148,2]
[340892157,1730031156195,-1611.0176,0.000148,2]
[340892158,1730031156215,-944.02,0.000148,2]
[340892159,1730031156236,-3359.2349,0.000148,2]
[340892160,1730031156257,-1911.0164,0.000148,2]
[340892161,1730031156280,-6798.87270386,0.000148,2]
[340892162,1730031156301,-3101.61729388,0.000148,2]
[340892164,1730031194200,318.35374524,0.00044105,30]
[340892166,1730031430252,505.86718737,0.00044105,30]
[340892174,1730031443795,244.39314184,0.00014042,2]
[340892175,1730031496576,23900.0,0.00014011,2]
[340892176,1730031541920,156.87,0.00014082,2]
[340892177,1730031564294,488.78628364,0.00014042,2]
[340892178,1730031571588,968.06,0.00012107,2]
[340892180,1730031610613,500.0,0.00013944,2]
[340892181,1730031640266,1060.28,0.00013944,2]
[340892182,1730031641306,157.56,0.00013944,2]
[340892183,1730031648449,1000.0,0.00014049,2]
[340892185,1730031716546,194.04,0.00014048,2]
[340892186,1730031728572,-2349.86,0.00014114,2]
[340892187,1730031728594,-150.0,0.00014142,2]
[340892188,1730031728617,-250.0,0.00014142,2]
[340892189,1730031728639,-250.0,0.00014159,2]
[340892190,1730031728660,-203.66,0.00014167,2]
[340892191,1730031728682,-300.0,0.00014254,2]
[340892192,1730031728705,-157.52,0.00014314,2]
[340892193,1730031728726,-968.06,0.00014371,2]
[340892194,1730031728747,-200.0,0.00014574,2]
[340892195,1730031728768,-2700.19,0.00014667,2]
[340892196,1730031728790,-6184.77,0.00014667,2]
[340892197,1730031728812,-1099.99,0.00014667,2]
[340892198,1730031728835,-1961.35,0.00014669,2]
[340892199,1730031728856,-299.99,0.00014775,2]
[340892200,1730031728879,-200.0,0.00014775,2]
[340892201,1730031728900,-402.44,0.00014775,2]
[340892202,1730031728921,-150.99,0.00014775,2]
[340892203,1730031728943,-324.53,0.00014775,2]
[340892204,1730031728968,-150.99,0.00014775,2]
[340892205,1730031728990,-156.87,0.00014786,2]
[340892206,1730031729012,-597.2,0.00014799,2]
[340892207,1730031729033,-499.99,0.00014799,2]
[340892208,1730031729054,-441.6,0.00014799,2]
[340892209,1730031930517,12598.53105489,0.000101,2]
[340892210,1730032002971,4310.61045842,0.00012666,2]
[340892211,1730032041133,205.0,9.8e-05,2]
[340892212,1730032045519,246.63787552,0.000101,2]
[340892213,1730032078063,4435.01566209,0.00012579,2]
[340892214,1730032078088,4319.0,0.00012579,2]
[340892215,1730032078456,-294.85701578,0.00012579,2]
[340892216,1730032080015,-250.0,0.00012579,2]
[340892217,1730032081905,800.0,0.0001,2]
[340892218,1730032081926,800.0,0.0001,2]
[340892219,1730032081945,800.0,0.0001,2]
[340892220,1730032081964,800.0,0.0001,2]
[340892221,1730032081985,800.0,0.0001,2]
[340892222,1730032082005,800.0,0.0001,2]
[340892223,1730032082024,800.0,0.0001,2]
[340892224,1730032082043,800.0,0.0001,2]
[340892225,1730032082062,800.0,0.0001,2]
[340892226,1730032082081,800.0,0.0001,2]
[340892227,1730032082100,800.0,0.0001,2]
[340892228,1730032082119,72.91455177,0.0001,2]
[340892229,1730032092276,-287.66600566,0.00012579,2]
[340892230,1730032092341,273.90676661,0.00013,4]
[340892231,1730032094986,-288.49528163,0.00012579,2]
[340892232,1730032095528,-269.17760904,0.00012579,2]
[340892233,1730032103421,-262.96408789,0.000135,2]
[340892234,1730032105324,-155.1,0.000135,2]
[340892235,1730032105721,-150.0,0.000135,2]
[340892236,1730032107248,-150.0,0.000135,2]
[340892237,1730032108123,-150.0,0.000135,2]
[340892238,1730032117658,161.58258872,0.00010998,2]
[340892239,1730032117678,161.58258872,0.00010998,2]
[340892240,1730032117698,161.58258872,0.00010998,2]
[340892241,1730032117717,161.58258872,0.00010998,2]
[340892242,1730032117737,161.58258872,0.00010998,2]
[340892243,1730032117758,161.58258872,0.00010998,2]
[340892244,1730032117778,161.58258872,0.00010998,2]
[340892245,1730032117799,161.58258872,0.00010998,2]
[340892246,1730032117819,161.58258872,0.00010998,2]
[340892247,1730032117840,161.58258872,0.00010998,2]
[340892248,1730032117860,138.58351806,0.00010998,2]
[340892249,1730032119557,-195.59059474,0.000129,2]
[340892250,1730032120703,22.99907066,0.0001,2]
[340892251,1730032120722,161.58258872,0.0001,2]
[340892252,1730032120741,27.83146537,0.0001,2]
[340892254,1730032124892,151.92145298,0.0001,2]
[340892255,1730032124912,151.92145298,0.0001,2]
[340892256,1730032124932,151.92145298,0.0001,2]
[340892257,1730032124952,151.92145298,0.0001,2]
[340892258,1730032124973,151.92145298,0.0001,2]
[340892259,1730032124993,151.92145298,0.0001,2]
[340892260,1730032125015,151.92145248,0.0001,2]
[340892261,1730032125037,151.92145298,0.0001,2]
[340892262,1730032125057,151.92145298,0.0001,2]
[340892263,1730032125077,151.92145298,0.0001,2]
[340892264,1730032125095,127.08544823,0.0001,2]
[340892265,1730032125117,948.45665403,0.0001,2]
[340892266,1730032149155,-300.0,0.00012899,2]
[340892267,1730032149175,-13974.7679472,0.000129,2]
[340892268,1730032149195,-613.35793947,0.00013,2]
[340892269,1730032155086,-182.09836565,0.00013,2]
[340892270,1730032156140,-16.44853409,0.00013,2]
[340892271,1730032156161,-131.93591211,0.000135,2]
[340892272,1730032157651,871.25,0.00012274,2]
[340892276,1730032176970,200.65681553,0.00013432,2]
[340892277,1730032183521,150.0,0.00013016,2]
[340892298,1730032231921,-157.56,0.0001393,2]
[340892299,1730032231931,-200.0,0.0001398,2]
[340892300,1730032231942,-152.64,0.00013986,2]
[340892301,1730032231953,-152.64,0.00013995,2]
[340892302,1730032231962,-152.64,0.00014004,2]
[340892303,1730032231972,-152.64,0.00014012,2]
[340892304,1730032231983,-152.64,0.00014021,2]
[340892305,1730032231993,-152.64,0.0001403,2]
[340892306,1730032232002,-250.0,0.0001403,2]
[340892307,1730032232012,-3097.92,0.00014039,2]
[340892308,1730032232021,-152.64,0.00014039,2]
[340892309,1730032232031,-152.64,0.00014047,2]
[340892310,1730032232040,-152.64,0.00014056,2]
[340892311,1730032232049,-150.0,0.0001406,2]
[340892312,1730032232058,-300.0,0.00014211,2]
[340892313,1730032232068,-384.91,0.00014212,2]
[340892314,1730032232077,-15537.78995533,0.00014212,2]
[340892315,1730032232086,-23900.0,0.00014255,2]
[340892316,1730032232096,-250.0,0.00014266,2]
[340892317,1730032232105,-1051.46,0.00014312,2]
[340892318,1730032232114,-163.7,0.00014405,2]
[340892319,1730032232124,-871.25,0.00014538,2]
[340892320,1730032232133,-283.1869,0.0001469,2]
[340892321,1730032232143,-6603.01718745,0.0001478,2]
[340892322,1730032232152,-150.0,0.00014789,2]
[340892323,1730032232162,-9174.59408283,0.0001479,3]
[340892324,1730032232171,-835.863,0.00014799,2]
[340892325,1730032232181,-179.09674588,0.00014799,2]
[340892326,1730032232191,-100000.0,0.000148,2]
[340892327,1730032232200,-1000.0,0.000148,2]
[340892328,1730032232209,-14023.3215,0.000148,2]
[340892329,1730032232219,-156862.57062851,0.000148,2]
[340892346,1730032232475,-255.0,0.000148,2]
[340892348,1730032232490,-403.001178,0.000148,2]
[340892843,1730032240127,-2642.0665791,0.000148,2]
[340892844,1730032240139,-741.56844662,0.000148,2]
[340892845,1730032240149,-7152.0410071,0.000148,2]
[340892862,1730032242899,-3837.18917865,0.000148,2]
[340892863,1730032243063,-676.65424181,0.000148,2]
[340892902,1730032245800,-3196.98955825,0.000148,2]
[340892904,1730032245928,-869.68262807,0.000148,2]
[340892905,1730032245939,-3361.424996,0.000148,2]
[340892906,1730032246027,-2453.03418609,0.000148,2]
[340892909,1730032258291,523.29031303,0.00044104,30]
[340892910,1730032477388,-4469.94,0.00014145,2]
[340892911,1730032477409,-1296.09105488,0.00014307,2]
[340892912,1730032477430,-1852.42,0.00014329,2]
[340892913,1730032477450,-200.0,0.00014404,2]
[340892914,1730032477469,-1140.26,0.00014407,2]
[340892915,1730032477489,-250.0,0.0001446,2]
[340892916,1730032477509,-300.0,0.00014463,2]
[340892917,1730032477529,-200.0,0.00014464,2]
[340892918,1730032477550,-161.29,0.00014464,2]
[340892919,1730032477569,-477.79,0.00014464,2]
[340892920,1730032477588,-2323.47,0.0001454,2]
[340892921,1730032477608,-4768.26,0.0001454,2]
[340892922,1730032477627,-300.0,0.00014699,2]
[340892923,1730032477647,-150.0,0.00014699,2]
[340892924,1730032477666,-1000.0,0.000147,2]
[340892925,1730032477685,-825.1967,0.000147,2]
[340892926,1730032477705,-186.2089,0.000147,2]
[340892927,1730032477725,-20099.07334512,0.000147,2]
[340892928,1730032576907,-50000.0,0.0001499,3]
[340892929,1730032578934,-19583.1675857,0.0001499,3]
[340892930,1730032578962,-30416.8324143,0.0001499,3]
[340892931,1730032579939,-29813.298341,0.0001499,3]
[340892932,1730032664764,300.0,0.000143,5]
[340892933,1730032666912,700.0,0.000144,5]
[340892934,1730032755540,3000.0,0.0004416,75]
[340892935,1730032765543,2000.0,0.0004416,73]
[340892936,1730032768853,150.0,0.0001136,2]
[340892937,1730032768873,150.0,0.0001136,2]
[340892938,1730032768893,150.0,0.0001136,2]
[340892939,1730032768912,150.0,0.0001136,2]
[340892940,1730032768932,150.0,0.0001136,2]
[340892941,1730032768952,137.79,0.0001136,2]
[340892942,1730033130915,500.0,0.00044161,30]
[340892943,1730033131207,500.0,0.00044161,30]
[340892944,1730033131516,500.0,0.00044161,30]
[340892945,1730033131785,500.0,0.00044161,30]
[340892946,1730033132051,500.0,0.00044161,30]
[340892947,1730033132332,500.0,0.00044161,30]
[340892948,1730033132974,500.0,0.00044161,30]
[340892949,1730033133247,500.0,0.00044161,30]
[340892950,1730033133494,500.0,0.00044161,30]
[340892951,1730033133791,297.29163452,0.00044161,30]
[340892952,1730033138374,500.0,0.00044161,30]
[340892953,1730033138667,500.0,0.00044161,30]
[340892954,1730033138955,500.0,0.00044161,30]
[340892955,1730033139221,500.0,0.00044161,30]
[340892956,1730033139483,500.0,0.00044161,30]
[340892957,1730033139791,500.0,0.00044161,30]
[340892958,1730033140080,500.0,0.00044161,30]
[340892959,1730033140341,500.0,0.00044161,30]
[340892960,1730033140595,500.0,0.00044161,30]
[340892961,1730033140876,500.0,0.00044161,30]
[340892962,1730033141142,500.0,0.00044161,30]
[340892963,1730033141417,486.2036,0.00044161,30]
[340892964,1730033233147,-242.59889486,0.00012984,2]
[340892965,1730033244808,300.0,0.000143,5]
[340892966,1730033246902,600.0,0.000144,5]
[340892967,1730033263870,-159.51,0.00012916,2]
[340892968,1730033263890,-9660.69,0.00012938,2]
[340892969,1730033263910,-257.40110514,0.00012984,2]
[340892970,1730033263936,-177.39,0.00013002,2]
[340892971,1730033263957,-554.19687873,0.00013002,2]
[340892972,1730033263977,-364.6,0.00013031,2]
[340892973,1730033263997,-6062.82705549,0.0001307,2]
[340892974,1730033264018,-200.0,0.0001307,2]
[340892975,1730033264037,-300.0,0.0001307,2]
[340892976,1730033264057,-300.0,0.0001308,2]
[340892977,1730033264078,-12826.38496064,0.00013081,2]
[340892978,1730033271679,2612.50170889,0.00044161,120]
[340892979,1730033338329,150.0,0.00011168,2]
[340892980,1730033338354,150.0,0.00011168,2]
[340892981,1730033338375,150.0,0.00011168,2]
[340892982,1730033338396,150.0,0.00011168,2]
[340892983,1730033338418,150.0,0.00011168,2]
[340892984,1730033338441,93.4,0.00011168,2]
[340892985,1730033341035,401.98949668,0.00044161,30]
[340892986,1730033347092,-163.7,0.00013067,2]
[340892987,1730033347112,-160.0,0.00013073,2]
[340892988,1730033347132,-696.96,0.00013073,2]
[340892989,1730033347152,-250.0,0.00013073,2]
[340892990,1730033347171,-300.0,0.0001308,2]
[340892991,1730033347193,-11073.61503936,0.00013081,2]
[340892992,1730033347214,-565.3,0.00013093,2]
[340892993,1730033347237,-150.0,0.0001315,2]
[340892994,1730033347257,-250.0,0.00013233,2]
[340892995,1730033347276,-1161.73,0.00013253,2]
[340892996,1730033347296,-115.1474605,0.00013263,2]
[340892999,1730033368092,-42.3725395,0.00013263,2]
[340893000,1730033368113,-219.0,0.00013335,2]
[340893001,1730033368132,-231.39,0.00013347,2]
[340893002,1730033368153,-106.92421225,0.00013432,2]
[340893003,1730033368179,-736.47578775,0.00013432,2]
[340893004,1730033377403,150.0,0.00013395,2]
[340893005,1730033395030,296.24837114,0.00012002,2]
[340893006,1730033395051,1315.54112044,0.00012002,2]
[340893007,1730033414654,150.0,0.00012001,2]
[340893008,1730033414675,150.0,0.00012001,2]
[340893009,1730033414696,150.0,0.00012001,2]
[340893010,1730033414716,150.0,0.00012001,2]
[340893011,1730033414736,150.0,0.00012001,2]
[340893012,1730033414756,150.0,0.00012001,2]
[340893013,1730033414776,150.0,0.00012001,2]
[340893014,1730033414796,150.0,0.00012001,2]
[340893015,1730033414816,150.0,0.00012001,2]
[340893016,1730033414836,150.0,0.00012001,2]
[340893017,1730033414856,111.16,0.00012001,2]
[340893019,1730033432222,-1206.39,0.0001314,2]
[340893020,1730033432233,-150.0,0.00013263,2]
[340893021,1730033432242,-150.0,0.00013263,2]
[340893022,1730033432252,-150.0,0.00013263,2]
[340893023,1730033432263,-150.0,0.00013263,2]
[340893024,1730033432273,-36.35092535,0.00013263,2]
[340893034,1730033438063,-250.0,0.00013137,2]
[340893035,1730033438072,-58.57114892,0.00013263,2]
[340893036,1730033438370,-55.07792573,0.00013263,2]
[340893037,1730033438379,-150.0,0.00013263,2]
[340893038,1730033438389,-150.0,0.00013263,2]
[340893039,1730033438398,-150.0,0.00013263,2]
[340893040,1730033438406,-150.0,0.00013263,2]
[340893041,1730033438415,-150.0,0.00013263,2]
[340893042,1730033438425,-150.0,0.00013263,2]
[340893043,1730033438434,-150.0,0.00013263,2]
[340893044,1730033438442,-150.0,0.00013263,2]
[340893045,1730033438452,-150.0,0.00013263,2]
[340893046,1730033438461,-150.0,0.00013263,2]
[340893047,1730033438470,-150.0,0.00013263,2]
[340893048,1730033438479,-150.0,0.00013263,2]
[340893049,1730033438488,-150.0,0.00013263,2]
[340893050,1730033438498,-150.0,0.00013263,2]
[340893051,1730033438507,-150.0,0.00013263,2]
[340893052,1730033438516,-159.66,0.00013263,2]
[340893053,1730033438525,-150.0,0.00013396,2]
[340893054,1730033438534,-200.0,0.00013699,2]
[340893055,1730033438544,-302.27084634,0.00013797,2]
[340893058,1730033438561,-904.11915366,0.00013797,2]
[340893060,1730033438570,-285.86084634,0.00013919,2]
[340893087,1730033440071,-1486.62915366,0.00013919,2]
[340893088,1730033440080,-1772.49,0.00013922,2]
[340893089,1730033440089,-1772.49,0.00013926,2]
[340893090,1730033440099,-1772.49,0.0001393,2]
[340893091,1730033440109,-300.0,0.00013932,2]
[340893092,1730033440119,-1772.49,0.00013933,2]
[340893093,1730033440129,-1772.49,0.00013937,2]
[340893094,1730033440139,-1772.49,0.00013941,2]
[340893095,1730033440149,-1772.49,0.00013944,2]
[340893096,1730033440159,-1772.49,0.00013948,2]
[340893097,1730033440169,-840.0,0.0001395,2]
[340893098,1730033440179,-1772.49,0.00013952,2]
[340893099,1730033440188,-150.0,0.00013954,2]
[340893100,1730033440197,-1772.49,0.00013955,2]
[340893101,1730033440208,-1772.49,0.00013959,2]
[340893102,1730033440218,-1772.49,0.00013963,2]
[340893103,1730033440229,-1772.49,0.00013966,2]
[340893104,1730033440239,-1772.49,0.0001397,2]
[340893105,1730033440249,-1772.49,0.00013974,2]
[340893106,1730033440258,-1772.49,0.00013977,2]
[340893107,1730033440267,-1772.49,0.00013981,2]
[340893108,1730033440276,-1772.49,0.00013985,2]
[340893109,1730033440285,-1005.02542301,0.00013987,2]
[340893110,1730033440295,-1772.49,0.00013988,2]
[340893111,1730033440304,-30446.0,0.00014409,2]
[340893112,1730033440315,-1206.39,0.00014454,2]
[340893113,1730033440324,-500.0,0.00014473,2]
[340893114,1730033440334,-4478.93060485,0.000145,2]
[340893115,1730033440363,-1463.78486381,0.000145,2]
[340893116,1730033440372,-128.71513609,0.000145,2]
[340893117,1730033440385,-2371.28486391,0.000145,2]
[340893118,1730033440395,-679.71513609,0.000145,2]
[340893119,1730033440413,-320.28486391,0.000145,2]
[340893120,1730033440422,-900.0,0.000145,5]
[340893121,1730033440432,-154.07564628,0.00014573,2]
[340893122,1730033440441,-500.0,0.00014573,2]
[340893123,1730033440451,-500.0,0.00014573,2]
[340893124,1730033440460,-973.06300882,0.0001459,3]
[340893125,1730033440469,-500.0,0.00014599,2]
[340893126,1730033440479,-500.0,0.00014599,2]
[340893127,1730033440488,-311.70199389,0.00014599,2]
[340893128,1730033440500,-3972.2744871,0.000146,2]
[340893129,1730033440576,-5000.0,0.000146,2]
[340893142,1730033443051,-391.96459998,0.000146,2]
[340893143,1730033443273,-509.80996943,0.000146,2]
[340893144,1730033443286,-127881.87122352,0.000146,2]
[340893145,1730033443427,-1389.72665969,0.000146,2]
[340893151,1730033446091,-557.65864476,0.000146,2]
[340893152,1730033446372,-1.47479335,0.000146,2]
[340893154,1730033446385,-6747.5,0.000146,2]
[340893155,1730033461229,-150.0,0.00013396,2]
[340893156,1730033555068,-150.0,0.00013955,2]
[340893157,1730033596586,-150.0,0.00013905,2]
[340893158,1730033597606,-150.0,0.00013905,2]
[340893159,1730033599391,-150.0,0.00013905,2]
[340893160,1730033599800,-150.0,0.00013905,2]
[340893161,1730033600973,-150.0,0.00013905,2]
[340893162,1730033601471,-150.0,0.00013905,2]
[340893163,1730033603243,-150.0,0.00013905,2]
[340893164,1730033604692,-150.0,0.00013905,2]
[340893165,1730033605380,-150.0,0.00013905,2]
[340893166,1730033606624,-150.0,0.00013905,2]
[340893167,1730033607087,-150.0,0.00013905,2]
[340893168,1730033607485,-150.0,0.00013905,2]
[340893169,1730033609823,-150.0,0.00013905,2]
[340893170,1730033611328,-150.0,0.00013905,2]
[340893171,1730033612485,-150.0,0.00013905,2]
[340893172,1730033612957,-150.0,0.00013905,2]
[340893173,1730033615022,-150.0,0.00013905,2]
[340893174,1730033615498,-150.0,0.00013905,2]
[340893175,1730033616100,-150.0,0.00013905,2]
[340893176,1730033619303,-150.0,0.00013905,2]
[340893177,1730033620202,-150.0,0.00013835,2]
[340893178,1730033620803,-150.0,0.00013835,2]
[340893179,1730033622450,-150.0,0.00013835,2]
[340893180,1730033625316,-150.0,0.00013835,2]
[340893181,1730033625799,-150.0,0.00013835,2]
[340893182,1730033627486,-150.0,0.00013835,2]
[340893183,1730033628090,-150.0,0.00013835,2]
[340893184,1730033628484,-150.0,0.00013835,2]
[340893185,1730033628909,-150.0,0.00013835,2]
[340893186,1730033629408,-150.0,0.00013835,2]
[340893187,1730033630515,-150.0,0.00013835,2]
[340893188,1730033631115,-150.0,0.00013835,2]
[340893189,1730033631910,-150.0,0.00013835,2]
[340893190,1730033632514,-150.0,0.00013835,2]
[340893191,1730033635022,-150.0,0.00013835,2]
[340893192,1730033696052,180.07,0.0001116,2]
[340893194,1730033850797,-3179.01314291,0.00013293,2]
[340893195,1730033850821,-250.0,0.00013312,2]
[340893196,1730033850849,-3179.0131429,0.00013315,2]
[340893197,1730033850874,-164.17133252,0.00013336,2]
[340893198,1730033850898,-3179.0131429,0.00013336,2]
[340893199,1730033850923,-872.0,0.00013393,2]
[340893200,1730033850950,-172.03,0.00013436,2]
[340893201,1730033850976,-1405.13506309,0.00013784,2]
[340893202,1730033851001,-156.22,0.00013884,2]
[340893203,1730033851027,-156.22,0.00013891,2]
[340893204,1730033851053,-156.22,0.00013899,2]
[340893205,1730033851078,-300.0,0.00013904,2]
[340893206,1730033851101,-172.49,0.00013904,2]
[340893207,1730033851128,-20900.0,0.00013905,2]
[340893208,1730033851154,-156.22,0.00013907,2]
[340893209,1730033851176,-156.22,0.00013915,2]
[340893210,1730033851200,-156.22,0.00013922,2]
[340893211,1730033851224,-156.22,0.0001393,2]
[340893212,1730033851248,-150.0,0.0001393,2]
[340893213,1730033851273,-156.22,0.00013938,2]
[340893214,1730033851304,-156.22,0.00013946,2]
[340893215,1730033851328,-300.0,0.0001395,2]
[340893216,1730033851353,-156.22,0.00013953,2]
[340893217,1730033851376,-50.0,0.00013955,2]
[340893218,1730033851397,-464.66615044,0.00014,2]
[340893219,1730033928602,893.78,0.00011968,2]
[340893229,1730034183290,180.07,0.00010995,2]
[340893230,1730034443097,-200.0,0.00013035,2]
[340893231,1730034443117,-61.17068623,0.00013079,2]
[340893232,1730034485585,442.30136766,0.0001449,3]
[340893233,1730034555118,-482.55,0.00012888,2]
[340893234,1730034555137,-411.64012289,0.00013038,2]
[340893235,1730034555157,-250.0,0.00013039,2]
[340893236,1730034555179,-175.2,0.0001304,2]
[340893237,1730034555199,-411.64012288,0.00013059,2]
[340893238,1730034555219,-411.64012288,0.00013079,2]
[340893239,1730034555240,-477.79,0.00013138,2]
[340893240,1730034555259,-300.0,0.00013179,2]
[340893241,1730034555279,-302.4,0.00013182,2]
[340893242,1730034555298,-1140.26,0.0001334,2]
[340893243,1730034555317,-1365.64534535,0.0001339,2]
[340893244,1730034564093,-849.09,0.00012104,2]
[340893245,1730034564113,-1148.19080576,0.0001339,2]
[340893246,1730034572092,-36.16384889,0.0001339,2]
[340893247,1730034572114,-300.0,0.00013424,2]
[340893248,1730034572134,-500.0,0.00013425,2]
[340893249,1730034572154,-106.6740808,0.00013425,2]
[340893252,1730034632294,-287.37338502,0.00013258,2]
[340893253,1730034632306,-1565.04661498,0.00013258,2]
[340893254,1730034632316,-393.3259192,0.00013425,2]
[340893255,1730034632325,-10.54994703,0.00013425,2]
[340893256,1730034632336,-489.45005297,0.00013425,2]
[340893257,1730034632345,-274.75894511,0.00013425,2]
[340893258,1730034632355,-150.0,0.00013512,2]
[340893259,1730034632364,-482.55,0.00013532,2]
[340893260,1730034632373,-200.0,0.00013699,2]
[340893261,1730034632382,-156.23,0.00013707,2]
[340893262,1730034632392,-4595.77,0.00013707,2]
[340893263,1730034632401,-156.23,0.00013719,2]
[340893264,1730034632411,-156.23,0.0001373,2]
[340893265,1730034632521,-153.88100192,0.00013741,2]
[340893266,1730034632533,-2.34899808,0.00013741,2]
[340893267,1730034632542,-4132.67,0.00013741,2]
[340893268,1730034632551,-156.23,0.00013753,2]
[340893269,1730034632561,-150.0,0.00013758,2]
[340893270,1730034632570,-1285.17048821,0.00013759,2]
[340893272,1730034632581,-834.78,0.00013759,2]
[340893274,1730034632592,-335.88946072,0.00013759,2]
[340893276,1730034632603,-1324.66334,0.00013759,2]
[340893279,1730034632615,-777.495996,0.00013759,2]
[340893281,1730034632626,-498.19956137,0.00013759,2]
[340893283,1730034632638,-1703.61103245,0.00013759,2]
[340893285,1730034632649,-17140.19012125,0.00013759,2]
[340893286,1730034632658,-4469.94,0.00013759,2]
[340893287,1730034632667,-156.23,0.00013764,2]
[340893288,1730034632676,-464.66615044,0.00013773,2]
[340893289,1730034632686,-500.0,0.00013773,2]
[340893290,1730034632695,-156.23,0.00013776,2]
[340893291,1730034632704,-177.37,0.00013785,2]
[340893292,1730034632713,-187.27,0.00013832,2]
[340893293,1730034632723,-1833.7,0.00013886,2]
[340893294,1730034632732,-165.06,0.00013917,2]
[340893295,1730034632744,-482.55,0.00014177,2]
[340893296,1730034632756,-849.09,0.00014368,2]
[340893297,1730034632765,-14011.3954,0.000144,2]
[340893298,1730034632775,-5348.44392183,0.000144,2]
[340893299,1730034632784,-155.80457663,0.000144,2]
[340893300,1730034632795,-177.37,0.00014475,2]
[340893301,1730034632804,-521.0388,0.000145,2]
[340893302,1730034632813,-5990.6554,0.000145,2]
[340893303,1730034632824,-186.2089,0.000145,2]
[340893304,1730034632833,-2582.1476,0.000145,2]
[340893305,1730034632843,-1000.0,0.000145,2]
[340893306,1730034632852,-825.1967,0.000145,2]
[340893307,1730034632861,-157851.40443769,0.000145,2]
[340893308,1730034632873,-3709.02681837,0.000145,2]
[340893317,1730034638233,-67878.301308,0.000145,2]
[340893321,1730034638292,-15561.26743594,0.000145,2]
[340893323,1730034638302,-9122.7894,0.000145,2]
[340893325,1730034638312,-2211.5068383,0.0001459,3]
[340893327,1730034638322,-6802.75574218,0.000146,2]
[340893427,1730034640240,-471.17578651,0.000146,2]
[340893429,1730034640255,-495.59000001,0.000146,2]
[340893430,1730034640684,-10411.3198713,0.000146,2]
[340893431,1730034640693,-200.0,0.000146,2]